fUST/lending_fUST_20250210
["ID","MTS","AMOUNT","RATE_DAILY","PERIOD"]
[352571603,1739173852737,-500.0,0.0001315,2]
[352571604,1739173852747,-837.58,0.0001315,2]
[352571605,1739173852757,-762.41,0.0001315,2]
[352571606,1739173852766,-1904.32,0.0001315,2]
[352571607,1739173852776,-849.42,0.0001315,2]
[352571608,1739173852785,-925.35,0.0001315,2]
[352571609,1739173852795,-878.8,0.0001315,2]
[352571610,1739173852804,-1541.79,0.0001315,2]
[352571611,1739173852814,-700.89,0.0001315,2]
[352571612,1739173852824,-587.98,0.0001315,2]
[352571613,1739173852833,-1948.67,0.0001315,2]
[352571614,1739173852843,-886.37,0.0001315,2]
[352571615,1739173852854,-11555.29,0.0001315,2]
[352571616,1739173852864,-3567.19,0.0001315,2]
[352571617,1739173852874,-1981.93,0.0001315,2]
[352571618,1739173852884,-1014.01,0.0001315,2]
[352571619,1739173852893,-566.83,0.00013287,2]
[352571620,1739173852903,-500.0,0.00013287,2]
[352571621,1739173852913,-598.1,0.00013287,2]
[352571622,1739173852923,-392.73019354,0.00013287,2]
[352571623,1739173852933,-636.99,0.00013287,2]
[352571624,1739173852943,-753.01,0.00013287,2]
[352571625,1739173852952,-275.534378,0.00013287,2]
[352571626,1739173852962,-416.01,0.00013287,2]
[352571627,1739173852971,-500.0,0.00013287,2]
[352571628,1739173852981,-500.0,0.00013287,2]
[352571629,1739173852991,-512.18,0.00013287,2]
[352571630,1739173853001,-151.0,0.00013287,2]
[352571631,1739173853010,-151.0,0.00013287,2]
[352571632,1739173853020,-582.61,0.00013287,2]
[352571633,1739173853030,-500.0,0.00013287,2]
[352571634,1739173853044,-323.41,0.00013287,2]
[352571635,1739173853057,-1011.4,0.00013287,2]
[352571636,1739173853067,-500.0,0.00013287,2]
[352571637,1739173853077,-500.0,0.00013287,2]
[352571638,1739173853087,-2327.36,0.00013287,2]
[352571639,1739173853097,-2167.03,0.00013287,2]
[352571640,1739173853107,-500.0,0.00013287,2]
[352571641,1739173853117,-1786.78,0.00013287,2]
[352571642,1739173853127,-1046.24,0.00013287,2]
[352571643,1739173853136,-737.05,0.00013287,2]
[352571644,1739173853146,-699.77,0.00013287,2]
[352571645,1739173853156,-889.57,0.00013287,2]
[352571646,1739173853165,-24674.75,0.00013287,2]
[352571647,1739173853175,-1381.02,0.00013287,2]
[352571648,1739173853185,-3775.41,0.00013287,2]
[352571649,1739173853194,-1106.43,0.00013287,2]
[352571650,1739173853204,-615.18,0.00013287,2]
[352571651,1739173853214,-500.0,0.00013287,2]
[352571652,1739173853224,-1821.24,0.00013287,2]
[352571653,1739173853233,-586.55,0.00013287,2]
[352571654,1739173853243,-612.13,0.00013287,2]
[352571655,1739173853253,-377.36,0.00013287,2]
[352571656,1739173853264,-5292.78,0.00013287,2]
[352571657,1739173853274,-1628.02,0.00013287,2]
[352571658,1739173853284,-500.0,0.00013287,2]
[352571659,1739173853294,-837.58,0.00013287,2]
[352571660,1739173853304,-762.41,0.00013287,2]
[352571661,1739173853313,-1904.32,0.00013287,2]
[352571662,1739173853323,-849.42,0.00013287,2]
[352571663,1739173853332,-925.35,0.00013287,2]
[352571664,1739173853341,-878.8,0.00013287,2]
[352571665,1739173853351,-1541.79,0.00013287,2]
[352571666,1739173853360,-700.89,0.00013287,2]
[352571667,1739173853370,-587.98,0.00013287,2]
[352571668,1739173853379,-1948.67,0.00013287,2]
[352571669,1739173853389,-886.37,0.00013287,2]
[352571670,1739173853399,-315.574191,0.00013287,2]
[352571671,1739173853410,-315.574191,0.00013287,2]
[352571672,1739173853420,-11555.29,0.00013287,2]
[352571673,1739173853430,-3567.19,0.00013287,2]
[352571674,1739173853441,-1981.93,0.00013287,2]
[352571675,1739173853452,-1014.01,0.00013287,2]
[352571676,1739173853461,-500.0,0.00013385,2]
[352571677,1739173853472,-566.83,0.00013424,2]
[352571678,1739173853482,-500.0,0.00013424,2]
[352571679,1739173853492,-598.1,0.00013424,2]
[352571680,1739173853502,-636.99,0.00013424,2]
[352571681,1739173853511,-753.01,0.00013424,2]
[352571682,1739173853521,-331.27,0.00013424,2]
[352571683,1739173853532,-500.0,0.00013424,2]
[352571684,1739173853542,-582.61,0.00013424,2]
[352571685,1739173853552,-500.0,0.00013424,2]
[352571686,1739173853562,-1011.4,0.00013424,2]
[352571687,1739173853573,-500.0,0.00013424,2]
[352571688,1739173853583,-182.863275,0.00013424,2]
[352571689,1739173853593,-182.863275,0.00013424,2]
[352571690,1739173853603,-500.0,0.00013424,2]
[352571691,1739173853613,-151.0,0.00013424,2]
[352571692,1739173853623,-151.0,0.00013424,2]
[352571693,1739173853632,-2327.36,0.00013424,2]
[352571694,1739173853642,-2167.03,0.00013424,2]
[352571695,1739173853652,-500.0,0.00013424,2]
[352571696,1739173853662,-1786.78,0.00013424,2]
[352571697,1739173853672,-1046.24,0.00013424,2]
[352571698,1739173853682,-737.05,0.00013424,2]
[352571699,1739173853692,-699.77,0.00013424,2]
[352571700,1739173853702,-889.57,0.00013424,2]
[352571701,1739173853712,-24674.75,0.00013424,2]
[352571702,1739173853722,-1381.02,0.00013424,2]
[352571703,1739173853731,-3775.41,0.00013424,2]
[352571704,1739173853740,-1106.43,0.00013424,2]
[352571705,1739173853751,-319.110338,0.00013424,2]
[352571706,1739173853761,-615.18,0.00013424,2]
[352571707,1739173853771,-500.0,0.00013424,2]
[352571708,1739173853781,-319.110338,0.00013424,2]
[352571709,1739173853791,-1821.24,0.00013424,2]
[352571710,1739173853801,-586.55,0.00013424,2]
[352571711,1739173853811,-612.13,0.00013424,2]
[352571712,1739173853821,-5292.78,0.00013424,2]
[352571713,1739173853831,-1628.02,0.00013424,2]
[352571714,1739173853841,-500.0,0.00013424,2]
[352571715,1739173853851,-837.58,0.00013424,2]
[352571716,1739173853861,-762.41,0.00013424,2]
[352571717,1739173853871,-1904.32,0.00013424,2]
[352571718,1739173853880,-849.42,0.00013424,2]
[352571719,1739173853890,-925.35,0.00013424,2]
[352571720,1739173853899,-878.8,0.00013424,2]
[352571721,1739173853908,-1541.79,0.00013424,2]
[352571722,1739173853918,-700.89,0.00013424,2]
[352571723,1739173853928,-161.424521,0.00013424,2]
[352571724,1739173853938,-161.424521,0.00013424,2]
[352571725,1739173853947,-587.98,0.00013424,2]
[352571726,1739173853956,-1948.67,0.00013424,2]
[352571727,1739173854043,-151.0,0.00013424,2]
[352571728,1739173854052,-886.37,0.00013424,2]
[352571729,1739173854062,-675.282182,0.00013424,2]
[352571730,1739173854073,-675.282182,0.00013424,2]
[352571731,1739173854083,-11555.29,0.00013424,2]
[352571732,1739173854092,-3567.19,0.00013424,2]
[352571733,1739173854102,-1981.93,0.00013424,2]
[352571734,1739173854112,-1014.01,0.00013424,2]
[352571735,1739173854122,-1180.84817499,0.00013544,2]
[352571736,1739173854132,-151.770735,0.00013561,2]
[352571737,1739173854141,-151.0,0.00013561,2]
[352571738,1739173854150,-151.0,0.00013561,2]
[352571739,1739173854160,-566.83,0.00013561,2]
[352571740,1739173854169,-151.0,0.00013561,2]
[352571741,1739173854179,-500.0,0.00013561,2]
[352571742,1739173854189,-598.1,0.00013561,2]
[352571743,1739173854198,-151.0,0.00013561,2]
[352571744,1739173854208,-636.99,0.00013561,2]
[352571745,1739173854218,-753.01,0.00013561,2]
[352571746,1739173854228,-574.97,0.00013561,2]
[352571747,1739173854237,-582.61,0.00013561,2]
[352571748,1739173854246,-500.0,0.00013561,2]
[352571749,1739173854256,-1011.4,0.00013561,2]
[352571750,1739173854265,-151.0,0.00013561,2]
[352571751,1739173854274,-468.488411,0.00013561,2]
[352571752,1739173854284,-500.0,0.00013561,2]
[352571753,1739173854294,-468.488411,0.00013561,2]
[352571754,1739173854303,-500.0,0.00013561,2]
[352571755,1739173854312,-2327.36,0.00013561,2]
[352571756,1739173854322,-2167.03,0.00013561,2]
[352571757,1739173854331,-406.56,0.00013561,2]
[352571758,1739173854341,-1786.78,0.00013561,2]
[352571759,1739173854350,-1046.24,0.00013561,2]
[352571760,1739173854360,-737.05,0.00013561,2]
[352571761,1739173854370,-699.77,0.00013561,2]
[352571762,1739173854379,-889.57,0.00013561,2]
[352571763,1739173854389,-24674.75,0.00013561,2]
[352571764,1739173854399,-1381.02,0.00013561,2]
[352571765,1739173854409,-3775.41,0.00013561,2]
[352571766,1739173854418,-1106.43,0.00013561,2]
[352571767,1739173854428,-615.18,0.00013561,2]
[352571768,1739173854438,-500.0,0.00013561,2]
[352571769,1739173854447,-1821.24,0.00013561,2]
[352571770,1739173854458,-586.55,0.00013561,2]
[352571771,1739173854467,-612.13,0.00013561,2]
[352571772,1739173854479,-5292.78,0.00013561,2]
[352571773,1739173854488,-1628.02,0.00013561,2]
[352571774,1739173854497,-500.0,0.00013561,2]
[352571775,1739173854507,-837.58,0.00013561,2]
[352571776,1739173854516,-762.41,0.00013561,2]
[352571777,1739173854525,-1904.32,0.00013561,2]
[352571778,1739173854535,-849.42,0.00013561,2]
[352571779,1739173854544,-925.35,0.00013561,2]
[352571780,1739173854553,-878.8,0.00013561,2]
[352571781,1739173854562,-1541.79,0.00013561,2]
[352571782,1739173854573,-700.89,0.00013561,2]
[352571783,1739173854582,-587.98,0.00013561,2]
[352571784,1739173854591,-1948.67,0.00013561,2]
[352571785,1739173854601,-886.37,0.00013561,2]
[352571786,1739173854610,-11555.29,0.00013561,2]
[352571787,1739173854620,-3567.19,0.00013561,2]
[352571788,1739173854629,-1981.93,0.00013561,2]
[352571789,1739173854638,-1014.01,0.00013561,2]
[352571790,1739173854648,-566.83,0.00013698,2]
[352571791,1739173854658,-500.0,0.00013698,2]
[352571792,1739173854668,-598.1,0.00013698,2]
[352571793,1739173854677,-636.99,0.00013698,2]
[352571794,1739173854686,-753.01,0.00013698,2]
[352571795,1739173854695,-582.61,0.00013698,2]
[352571796,1739173854704,-439.52,0.00013698,2]
[352571797,1739173854714,-1011.4,0.00013698,2]
[352571798,1739173854724,-151.0,0.00013698,2]
[352571799,1739173854734,-503.76,0.00013698,2]
[352571800,1739173854743,-500.0,0.00013698,2]
[352571801,1739173854753,-2327.36,0.00013698,2]
[352571802,1739173854763,-2167.03,0.00013698,2]
[352571803,1739173854772,-1786.78,0.00013698,2]
[352571804,1739173854782,-1046.24,0.00013698,2]
[352571805,1739173854791,-737.05,0.00013698,2]
[352571806,1739173854801,-699.77,0.00013698,2]
[352571807,1739173854810,-889.57,0.00013698,2]
[352571808,1739173854819,-24674.75,0.00013698,2]
[352571809,1739173854830,-1381.02,0.00013698,2]
[352571810,1739173854839,-3775.41,0.00013698,2]
[352571811,1739173854849,-1106.43,0.00013698,2]
[352571812,1739173854859,-615.18,0.00013698,2]
[352571813,1739173854869,-500.0,0.00013698,2]
[352571814,1739173854878,-1821.24,0.00013698,2]
[352571815,1739173854887,-586.55,0.00013698,2]
[352571816,1739173854898,-612.13,0.00013698,2]
[352571817,1739173854907,-5292.78,0.00013698,2]
[352571818,1739173854917,-1628.02,0.00013698,2]
[352571819,1739173854927,-628.32,0.00013698,2]
[352571820,1739173854936,-837.58,0.00013698,2]
[352571821,1739173854945,-762.41,0.00013698,2]
[352571822,1739173854955,-1904.32,0.00013698,2]
[352571823,1739173854965,-849.42,0.00013698,2]
[352571824,1739173854974,-925.35,0.00013698,2]
[352571825,1739173854983,-878.8,0.00013698,2]
[352571826,1739173854992,-1541.79,0.00013698,2]
[352571827,1739173855002,-700.89,0.00013698,2]
[352571828,1739173855011,-587.98,0.00013698,2]
[352571829,1739173855020,-1948.67,0.00013698,2]
[352571830,1739173855030,-886.37,0.00013698,2]
[352571831,1739173855039,-11555.29,0.00013698,2]
[352571832,1739173855048,-3567.19,0.00013698,2]
[352571833,1739173855058,-1981.93,0.00013698,2]
[352571834,1739173855067,-1014.01,0.00013698,2]
[352571835,1739173855076,-1279.979793,0.00013699,2]
[352571836,1739173855085,-1098.959312,0.00013699,2]
[352571837,1739173855094,-500.0,0.00013699,2]
[352571838,1739173855103,-500.0,0.00013699,2]
[352571839,1739173855112,-500.0,0.00013699,2]
[352571840,1739173855121,-500.0,0.00013699,2]
[352571841,1739173855130,-500.0,0.00013699,2]
[352571842,1739173855139,-500.0,0.00013699,2]
[352571843,1739173855148,-500.0,0.00013699,2]
[352571844,1739173855156,-500.0,0.00013699,2]
[352571845,1739173855165,-500.0,0.00013699,2]
[352571846,1739173855174,-500.0,0.00013699,2]
[352571847,1739173855183,-500.0,0.00013699,2]
[352571848,1739173855192,-500.0,0.00013699,2]
[352571849,1739173855201,-500.0,0.00013699,2]
[352571850,1739173855209,-500.0,0.00013699,2]
[352571851,1739173855218,-500.0,0.00013699,2]
[352571852,1739173855227,-500.0,0.00013699,2]
[352571853,1739173855236,-500.0,0.00013699,2]
[352571854,1739173855245,-500.0,0.00013699,2]
[352571855,1739173855254,-500.0,0.00013699,2]
[352571856,1739173855263,-500.0,0.00013699,2]
[352571857,1739173855273,-500.0,0.00013699,2]
[352571858,1739173855282,-500.0,0.00013699,2]
[352571859,1739173855291,-500.0,0.00013699,2]
[352571860,1739173855300,-500.0,0.00013699,2]
[352571861,1739173855309,-500.0,0.00013699,2]
[352571862,1739173855318,-500.0,0.00013699,2]
[352571863,1739173855327,-500.0,0.00013699,2]
[352571864,1739173855336,-500.0,0.00013699,2]
[352571865,1739173855345,-500.0,0.00013699,2]
[352571866,1739173855355,-170.27079445,0.00013699,2]
[352571867,1739173855363,-500.0,0.00013699,2]
[352571868,1739173855373,-500.0,0.00013699,2]
[352571869,1739173855382,-500.0,0.00013699,2]
[352571870,1739173855391,-500.0,0.00013699,2]
[352571871,1739173855401,-500.0,0.00013699,2]
[352571872,1739173855411,-500.0,0.00013699,2]
[352571873,1739173855420,-500.0,0.00013699,2]
[352571874,1739173855429,-500.0,0.00013699,2]
[352571875,1739173855438,-500.0,0.00013699,2]
[352571876,1739173855448,-500.0,0.00013699,2]
[352571877,1739173855457,-500.0,0.00013699,2]
[352571878,1739173855467,-500.0,0.00013699,2]
[352571879,1739173855478,-500.0,0.00013699,2]
[352571880,1739173855487,-500.0,0.00013699,2]
[352571881,1739173855496,-500.0,0.00013699,2]
[352571882,1739173855506,-500.0,0.00013699,2]
[352571883,1739173855515,-500.0,0.00013699,2]
[352571884,1739173855595,-500.0,0.00013699,2]
[352571885,1739173855605,-500.0,0.00013699,2]
[352571886,1739173855614,-500.0,0.00013699,2]
[352571887,1739173855623,-500.0,0.00013699,2]
[352571888,1739173855632,-500.0,0.00013699,2]
[352571889,1739173855641,-500.0,0.00013699,2]
[352571890,1739173855651,-650.0,0.00013699,2]
[352571891,1739173855660,-500.0,0.00013699,2]
[352571892,1739173855669,-500.0,0.00013699,2]
[352571893,1739173855678,-500.0,0.00013699,2]
[352571894,1739173855687,-500.0,0.00013699,2]
[352571895,1739173855696,-500.0,0.00013699,2]
[352571896,1739173855706,-500.0,0.00013699,2]
[352571897,1739173855715,-500.0,0.00013699,2]
[352571898,1739173855724,-500.0,0.00013699,2]
[352571899,1739173855733,-500.0,0.00013699,2]
[352571900,1739173855742,-500.0,0.00013699,2]
[352571901,1739173855751,-500.0,0.00013699,2]
[352571902,1739173855760,-514.42599404,0.00013699,2]
[352571903,1739173855769,-208.33150763,0.00013699,2]
[352571904,1739173855793,-291.66849237,0.00013699,2]
[352571905,1739173855802,-500.0,0.00013699,2]
[352571906,1739173855812,-500.0,0.00013699,2]
[352571907,1739173855821,-500.0,0.00013699,2]
[352571908,1739173855831,-500.0,0.00013699,2]
[352571909,1739173855840,-500.0,0.00013699,2]
[352571910,1739173855850,-500.0,0.00013699,2]
[352571911,1739173855859,-500.0,0.00013699,2]
[352571912,1739173855869,-500.0,0.00013699,2]
[352571913,1739173855878,-500.0,0.00013699,2]
[352571914,1739173855888,-500.0,0.00013699,2]
[352571915,1739173855898,-500.0,0.00013699,2]
[352571916,1739173855907,-564.42599404,0.00013699,2]
[352571917,1739173855916,-500.0,0.00013699,2]
[352571918,1739173855926,-500.0,0.00013699,2]
[352571919,1739173855935,-500.0,0.00013699,2]
[352571920,1739173855945,-500.0,0.00013699,2]
[352571921,1739173855954,-500.0,0.00013699,2]
[352571922,1739173855963,-500.0,0.00013699,2]
[352571923,1739173855973,-1458.76133201,0.00013699,2]
[352571924,1739173855982,-1458.76133201,0.00013699,2]
[352571925,1739173855992,-1458.76133201,0.00013699,2]
[352571926,1739173856002,-1458.76133201,0.00013699,2]
[352571927,1739173856011,-1458.76133201,0.00013699,2]
[352571928,1739173856021,-151.0,0.00013699,2]
[352571929,1739173856030,-151.0,0.00013699,2]
[352571930,1739173856039,-151.0,0.00013699,2]
[352571931,1739173856049,-315.574191,0.00013699,2]
[352571932,1739173856059,-315.574191,0.00013699,2]
[352571933,1739173856069,-165.26543922,0.000137,2]
[352571934,1739173856079,-165.26543922,0.000137,2]
[352571935,1739173856089,-165.26,0.000137,2]
[352571936,1739173856099,-1500.0,0.00013702,2]
[352571937,1739173856109,-160.05648958,0.00013834,2]
[352571938,1739173856118,-151.0,0.00013835,2]
[352571939,1739173856128,-151.0,0.00013835,2]
[352571940,1739173856138,-151.0,0.00013835,2]
[352571941,1739173856147,-151.0,0.00013835,2]
[352571942,1739173856158,-566.83,0.00013835,2]
[352571943,1739173856168,-500.0,0.00013835,2]
[352571944,1739173856178,-598.1,0.00013835,2]
[352571945,1739173856188,-636.99,0.00013835,2]
[352571946,1739173856198,-644.69585684,0.00013835,2]
[352571947,1739173856332,-400.0,0.00010685,2]
[352571948,1739173856342,-108.31414316,0.00013835,2]
[352571949,1739173856352,-151.0,0.00013835,2]
[352571950,1739173856361,-582.61,0.00013835,2]
[352571951,1739173856370,-1011.4,0.00013835,2]
[352571952,1739173856380,-182.863275,0.00013835,2]
[352571953,1739173856390,-182.863275,0.00013835,2]
[352571954,1739173856403,-151.0,0.00013835,2]
[352571955,1739173856413,-2327.36,0.00013835,2]
[352571956,1739173856423,-2167.03,0.00013835,2]
[352571957,1739173856433,-1786.78,0.00013835,2]
[352571958,1739173856443,-1046.24,0.00013835,2]
[352571959,1739173856453,-737.05,0.00013835,2]
[352571960,1739173856463,-699.77,0.00013835,2]
[352571961,1739173856473,-889.57,0.00013835,2]
[352571962,1739173856483,-24674.75,0.00013835,2]
[352571963,1739173856492,-1381.02,0.00013835,2]
[352571964,1739173856502,-3775.41,0.00013835,2]
[352571965,1739173856511,-1106.43,0.00013835,2]
[352571966,1739173856522,-319.110338,0.00013835,2]
[352571967,1739173856531,-615.18,0.00013835,2]
[352571968,1739173856541,-500.0,0.00013835,2]
[352571969,1739173856551,-319.110338,0.00013835,2]
[352571970,1739173856561,-1821.24,0.00013835,2]
[352571971,1739173856570,-586.55,0.00013835,2]
[352571972,1739173856580,-612.13,0.00013835,2]
[352571973,1739173856590,-5292.78,0.00013835,2]
[352571974,1739173856599,-829.71296687,0.00013835,2]
[352571975,1739173856735,-267.33,0.00010958,2]
[352571976,1739173856745,-208.47,0.00010959,2]
[352571977,1739173856755,-798.30703313,0.00013835,2]
[352571978,1739173856765,-837.58,0.00013835,2]
[352571979,1739173856775,-762.41,0.00013835,2]
[352571980,1739173856785,-1904.32,0.00013835,2]
[352571981,1739173856795,-849.42,0.00013835,2]
[352571982,1739173856804,-925.35,0.00013835,2]
[352571983,1739173856814,-878.8,0.00013835,2]
[352571984,1739173856824,-1541.79,0.00013835,2]
[352571985,1739173856834,-700.89,0.00013835,2]
[352571986,1739173856844,-161.424521,0.00013835,2]
[352571987,1739173856854,-161.424521,0.00013835,2]
[352571988,1739173856863,-587.98,0.00013835,2]
[352571989,1739173856875,-1948.67,0.00013835,2]
[352571990,1739173856885,-886.37,0.00013835,2]
[352571991,1739173856895,-675.282182,0.00013835,2]
[352571992,1739173856905,-675.282182,0.00013835,2]
[352571993,1739173856915,-11555.29,0.00013835,2]
[352571994,1739173856925,-3567.19,0.00013835,2]
[352571995,1739173856936,-1981.93,0.00013835,2]
[352571996,1739173856945,-1014.01,0.00013835,2]
[352571997,1739173856955,-566.83,0.00013972,2]
[352571998,1739173856967,-458.56,0.00013972,2]
[352571999,1739173857050,-598.1,0.00013972,2]
[352572000,1739173857061,-636.99,0.00013972,2]
[352572001,1739173857071,-753.01,0.00013972,2]
[352572002,1739173857081,-582.61,0.00013972,2]
[352572003,1739173857090,-1011.4,0.00013972,2]
[352572004,1739173857099,-151.0,0.00013972,2]
[352572005,1739173857108,-468.488411,0.00013972,2]
[352572006,1739173857118,-468.488411,0.00013972,2]
[352572007,1739173857128,-2327.36,0.00013972,2]
[352572008,1739173857137,-2167.03,0.00013972,2]
[352572009,1739173857147,-1786.78,0.00013972,2]
[352572010,1739173857157,-1046.24,0.00013972,2]
[352572011,1739173857166,-737.05,0.00013972,2]
[352572012,1739173857176,-699.77,0.00013972,2]
[352572013,1739173857185,-889.57,0.00013972,2]
[352572014,1739173857194,-24674.75,0.00013972,2]
[352572015,1739173857204,-1381.02,0.00013972,2]
[352572016,1739173857214,-3775.41,0.00013972,2]
[352572017,1739173857224,-1106.43,0.00013972,2]
[352572018,1739173857234,-615.18,0.00013972,2]
[352572019,1739173857244,-214.94,0.00013972,2]
[352572020,1739173857254,-1821.24,0.00013972,2]
[352572021,1739173857263,-586.55,0.00013972,2]
[352572022,1739173857273,-612.13,0.00013972,2]
[352572023,1739173857282,-5292.78,0.00013972,2]
[352572024,1739173857292,-1628.02,0.00013972,2]
[352572025,1739173857301,-837.58,0.00013972,2]
[352572026,1739173857311,-762.41,0.00013972,2]
[352572027,1739173857321,-1904.32,0.00013972,2]
[352572028,1739173857330,-849.42,0.00013972,2]
[352572029,1739173857339,-925.35,0.00013972,2]
[352572030,1739173857348,-878.8,0.00013972,2]
[352572031,1739173857357,-1541.79,0.00013972,2]
[352572032,1739173857368,-700.89,0.00013972,2]
[352572033,1739173857377,-587.98,0.00013972,2]
[352572034,1739173857386,-1948.67,0.00013972,2]
[352572035,1739173857397,-886.37,0.00013972,2]
[352572036,1739173857409,-11555.29,0.00013972,2]
[352572037,1739173857419,-3567.19,0.00013972,2]
[352572038,1739173857428,-1981.93,0.00013972,2]
[352572039,1739173857438,-1014.01,0.00013972,2]
[352572040,1739173857448,-3351.70637085,0.00014,2]
[352572041,1739173857457,-269.36225649,0.00014109,2]
[352572042,1739173857467,-151.0,0.00014109,2]
[352572043,1739173857478,-567.03,0.00014109,2]
[352572044,1739173857488,-151.0,0.00014109,2]
[352572045,1739173857497,-598.1,0.00014109,2]
[352572046,1739173857507,-637.05,0.00014109,2]
[352572047,1739173857517,-753.15,0.00014109,2]
[352572048,1739173857526,-582.64,0.00014109,2]
[352572049,1739173857536,-1011.42,0.00014109,2]
[352572050,1739173857545,-151.0,0.00014109,2]
[352572051,1739173857555,-2327.37943141,0.00014109,2]
[352572052,1739173857564,-2167.06065621,0.00014109,2]
[352572053,1739173857574,-1786.9579993,0.00014109,2]
[352572054,1739173857584,-1046.39,0.00014109,2]
[352572055,1739173857594,-737.13,0.00014109,2]
[352572056,1739173857603,-699.99,0.00014109,2]
[352572057,1739173857612,-889.65,0.00014109,2]
[352572058,1739173857622,-24674.85738679,0.00014109,2]
[352572059,1739173857632,-1381.10854722,0.00014109,2]
[352572060,1739173857641,-3775.51044657,0.00014109,2]
[352572061,1739173857652,-1106.5,0.00014109,2]
[352572062,1739173857662,-615.27,0.00014109,2]
[352572063,1739173857672,-1821.285,0.00014109,2]
[352572064,1739173857682,-586.55,0.00014109,2]
[352572065,1739173857692,-612.24,0.00014109,2]
[352572066,1739173857701,-5292.88,0.00014109,2]
[352572067,1739173857711,-1628.02578792,0.00014109,2]
[352572068,1739173857721,-837.7,0.00014109,2]
[352572069,1739173857730,-762.41,0.00014109,2]
[352572070,1739173857740,-1904.48559758,0.00014109,2]
[352572071,1739173857750,-849.47111763,0.00014109,2]
[352572072,1739173857759,-925.58,0.00014109,2]
[352572073,1739173857768,-878.97,0.00014109,2]
[352572074,1739173857777,-1541.93,0.00014109,2]
[352572075,1739173857787,-700.9460366,0.00014109,2]
[352572076,1739173857797,-588.14,0.00014109,2]
[352572077,1739173857806,-1948.8599499,0.00014109,2]
[352572078,1739173857816,-886.56,0.00014109,2]
[352572079,1739173857827,-11555.46586109,0.00014109,2]
[352572080,1739173857836,-3567.39,0.00014109,2]
[352572081,1739173857846,-1982.09201855,0.00014109,2]
[352572082,1739173857856,-1014.10396707,0.00014109,2]
[352572083,1739173857866,-569.823,0.00014118,2]
[352572084,1739173857876,-2145.97,0.000142,2]
[352572085,1739173857886,-1180.84817499,0.00014439,2]
[352572086,1739173857895,-610.73391363,0.000145,2]
[352572087,1739173857905,-500.0,0.00014755,2]
[352572088,1739173857915,-150.491,0.00014829,2]
[352572089,1739173857924,-1971.0,0.00014829,2]
[352572090,1739173857935,-540.67,0.00014829,2]
[352572091,1739173857944,-2297.0,0.00014829,2]
[352572092,1739173857954,-183.365,0.00014829,2]
[352572093,1739173857963,-396.0,0.00014829,2]
[352572094,1739173857973,-153.262,0.00014829,2]
[352572095,1739173857983,-294.602,0.00014829,2]
[352572096,1739173857993,-502.14316149,0.00014999,2]
[352572097,1739173858002,-505.0,0.00015,5]
[352572098,1739173858011,-166.0,0.00015068,2]
[352572099,1739173858020,-374.2069723,0.0001526,2]
[352572100,1739173858030,-1180.84817499,0.00015334,2]
[352572101,1739173858039,-500.0,0.000155,7]
[352572102,1739173858049,-500.0,0.000155,7]